bitfinex/quotes_ETHUSD_20250802
["timestamp","ask_amount","ask_price","bid_price","bid_amount"]
[1754094088843,4.6272,3497.2,3497.0,0.002]
[1754094089852,7.48664053,3497.2,3497.0,0.002]
[1754094090213,4.6272,3497.2,3497.0,0.002]
[1754094091006,0.1432,3497.2,3497.1,2.85951216]
[1754094091214,4.482,3497.2,3497.1,0.9325]
[1754094092248,4.482,3497.2,3497.1,0.4969]
[1754094095023,3.00246786,3497.4,3497.1,0.4969]
[1754094095228,4.481,3497.2,3497.1,0.4969]
[1754094096533,3.73288969,3497.9,3497.1,3.79194834]
[1754094096841,3.1432,3497.7,3497.2,3.35628054]
[1754094097038,0.1432,3497.7,3497.3,0.9325]
[1754094097272,4.48,3497.6,3497.5,0.1432]
[1754094097479,0.001,3497.9,3497.8,2.8589399]
[1754094097833,0.001,3497.9,3497.8,4.7424018]
[1754094100055,0.001,3497.9,3497.8,4.77099119]
[1754094100369,0.001,3497.9,3497.8,7.77099119]
[1754094100568,0.001,3497.9,3497.8,12.2214018]
[1754094102065,0.001,3497.9,3497.8,20.56530795]
[1754094103365,0.001,3498.3,3498.1,2.85869471]
[1754094103551,0.001,3498.3,3498.2,5.858613]
[1754094103748,0.001,3498.3,3498.2,10.336613]
[1754094103978,0.001,3498.3,3498.2,11.269113]
[1754094104286,0.001,3498.3,3498.2,19.06301915]
[1754094104839,0.001,3498.3,3498.2,19.61301915]
[1754094105084,0.001,3498.3,3498.2,20.29558467]
[1754094106128,0.001,3498.3,3498.2,12.50167852]
[1754094107166,0.001,3498.3,3498.2,13.36007852]
[1754094107579,0.001,3498.3,3498.2,12.64487852]
[1754094115853,0.001,3498.3,3498.2,6.68437852]
[1754094116057,0.001,3498.3,3498.2,11.15737852]
[1754094116498,0.001,3498.3,3498.2,11.61497852]
[1754094119273,0.9355,3498.3,3498.2,4.6162]
[1754094119593,0.9355,3498.3,3498.2,7.474813]
[1754094119971,0.9355,3498.3,3498.2,4.6162]
[1754094120368,0.001,3498.3,3498.2,7.474813]
[1754094120679,0.001,3498.3,3498.2,8.5083688]
[1754094120881,0.001,3498.3,3498.2,8.9659688]
[1754094121487,0.001,3498.3,3498.2,8.5083688]
[1754094121699,0.9355,3498.3,3498.2,7.473813]
[1754094121926,0.001,3498.3,3498.2,7.473813]
[1754094122386,0.4562,3498.3,3498.2,7.473813]
[1754094122596,0.9355,3498.3,3498.2,3.001813]
[1754094122811,0.9355,3498.3,3498.2,0.1432]
[1754094123113,0.9355,3498.3,3498.1,0.002]
[1754094123114,2.858613,3498.2,3498.1,0.002]
[1754094123276,3.793113,3498.2,3498.1,0.002]
[1754094123473,11.61586927,3498.2,3498.1,0.002]
[1754094123677,15.13701915,3498.2,3498.1,0.002]
[1754094123887,16.85501915,3498.2,3498.1,1e-08]
[1754094124088,23.6355859,3498.2,3498.1,1e-08]
[1754094125091,21.9175859,3498.2,3498.1,1e-08]
[1754094125822,17.10623815,3498.2,3498.1,1e-08]
[1754094126133,13.926532,3498.2,3498.1,1e-08]
[1754094127133,22.27043815,3498.2,3498.1,1e-08]
[1754094128009,14.476532,3498.2,3498.1,1e-08]
[1754094128210,9.455532,3498.2,3498.1,1e-08]
[1754094128411,13.927532,3498.2,3498.1,1e-08]
[1754094129636,20.947532,3498.2,3498.1,1e-08]
[1754094129803,20.946532,3498.2,3498.1,1e-08]
[1754094131851,16.26587975,3498.2,3498.1,1e-08]
[1754094132137,19.65917975,3498.2,3498.1,1e-08]
[1754094133809,16.80056675,3498.2,3498.1,1e-08]
[1754094134009,3.00273774,3498.3,3498.1,0.89640001]
[1754094134010,0.001,3498.3,3498.1,0.89640001]
[1754094134240,0.001,3498.3,3498.2,0.8964]
[1754094134803,0.001,3498.3,3498.2,3.898213]
[1754094135502,0.001,3498.3,3498.2,1.0396]
[1754094135734,0.001,3498.3,3498.2,3.898213]
[1754094136814,0.001,3498.3,3498.2,4.57391165]
[1754094138341,0.001,3498.3,3498.2,0.1432]
[1754094142756,2.85953128,3498.3,3498.2,0.1432]
[1754094142943,2.858613,3498.2,3498.1,1e-08]
[1754094143144,0.965,3498.2,3498.1,1e-08]
[1754094143344,1.64761626,3498.2,3498.1,1e-08]
[1754094143688,4.50622926,3498.2,3498.1,1e-08]
[1754094144532,4.53507938,3498.2,3498.1,1e-08]
[1754094144725,4.50622926,3498.2,3498.1,1e-08]
[1754094146523,7.53507938,3498.2,3498.1,1e-08]
[1754094146725,7.50622926,3498.2,3498.1,1e-08]
[1754094152547,8.05622926,3498.2,3498.1,1e-08]
[1754094153777,12.52322926,3498.2,3498.1,1e-08]
[1754094154480,6.54122926,3498.2,3498.1,1e-08]
[1754094154679,11.00822926,3498.2,3498.1,1e-08]
[1754094155498,18.02822926,3498.2,3498.1,1e-08]
[1754094158507,18.99322926,3498.2,3498.1,1e-08]
[1754094159668,18.49352926,3498.2,3498.1,1e-08]
[1754094161689,18.02822926,3498.2,3498.1,1e-08]
[1754094162266,13.56122926,3498.2,3498.1,1e-08]
[1754094162610,17.343613,3498.2,3498.1,0.90870001]
[1754094162905,10.02,3498.2,3498.1,0.90870001]
[1754094163106,14.485,3498.2,3498.1,0.90870001]
[1754094163400,17.343613,3498.2,3498.1,0.90870001]
[1754094163798,18.308613,3498.2,3498.1,1e-08]
[1754094164001,20.56861936,3498.2,3498.1,1e-08]
[1754094164208,19.60361936,3498.2,3498.1,1e-08]
[1754094165106,19.60361936,3498.2,3498.1,0.47180001]
[1754094165463,19.60361936,3498.2,3498.1,1e-08]
[1754094166097,10.1632,3498.2,3498.1,0.47180001]
[1754094166296,17.342613,3498.2,3498.1,0.90870001]
[1754094166500,17.342613,3498.2,3498.1,0.47180001]
[1754094166698,17.342613,3498.2,3498.1,1e-08]
[1754094167122,14.484,3498.2,3498.1,0.90870001]
[1754094167272,17.342613,3498.2,3498.1,0.90870001]
[1754094168522,17.342613,3498.2,3498.1,1e-08]
[1754094169416,17.342613,3498.2,3498.1,0.47180001]
[1754094169895,17.342613,3498.2,3498.1,1e-08]
[1754094170455,19.42711679,3498.2,3498.1,1e-08]
[1754094170736,20.39211679,3498.2,3498.1,1e-08]
[1754094171539,19.42711679,3498.2,3498.1,1e-08]
[1754094172102,10.02,3498.2,3498.1,1e-08]
[1754094172325,14.483,3498.2,3498.1,0.88330001]
[1754094172530,17.341613,3498.2,3498.1,0.88330001]
[1754094173247,17.341613,3498.2,3498.1,0.45170001]
[1754094175651,20.32303991,3498.2,3498.1,1e-08]
[1754094175816,20.46623991,3498.2,3498.1,1e-08]
[1754094177422,21.01623991,3498.2,3498.1,1e-08]
[1754094180646,16.55323991,3498.2,3498.1,1e-08]
[1754094180852,21.01423991,3498.2,3498.1,1e-08]
[1754094181559,19.51723991,3498.2,3498.1,0.45170001]
[1754094181920,19.51723991,3498.2,3498.1,1e-08]
[1754094183667,15.05623991,3498.2,3498.1,0.45170001]
[1754094183959,19.51723991,3498.2,3498.1,0.45170001]
[1754094184359,3.40885817,3497.9,3497.8,1e-08]
[1754094184565,7.31885817,3497.9,3497.8,1e-08]
[1754094184723,10.31885817,3497.9,3497.8,0.88330001]
[1754094187272,10.31885817,3497.9,3497.8,0.45170001]
[1754094187419,10.31885817,3497.9,3497.8,0.88330001]
[1754094187619,5.85885817,3497.9,3497.8,0.88330001]
[1754094187859,10.31885817,3497.9,3497.8,0.88330001]
[1754094188867,3.0,3497.9,3497.8,0.88330001]
[1754094189025,7.459,3497.9,3497.8,0.88330001]
[1754094189241,10.31785817,3497.9,3497.8,0.88330001]
[1754094190180,4.459,3497.9,3497.8,0.88330001]
[1754094190964,7.31785817,3497.9,3497.8,0.88330001]
[1754094192566,4.459,3497.9,3497.8,0.88330001]
[1754094192775,7.31785817,3497.9,3497.8,0.88330001]
[1754094193574,7.31785817,3497.9,3497.8,0.45170001]
[1754094194547,4.459,3497.9,3497.8,0.88330001]
[1754094195066,0.1432,3498.1,3497.8,0.88330001]
[1754094195270,7.458,3498.0,3497.9,0.8833]
[1754094196569,7.02,3498.2,3497.9,0.8833]
[1754094196737,10.31675476,3498.1,3498.0,0.8833]
[1754094196940,10.31675476,3498.1,3498.0,0.4316]
[1754094199575,10.315613,3498.2,3498.1,0.8833]
[1754094199885,7.457,3498.2,3498.1,0.8833]
[1754094200054,10.315613,3498.2,3498.1,0.8833]
[1754094200258,10.315613,3498.2,3498.1,0.4517]
[1754094202058,7.457,3498.2,3498.1,0.4517]
[1754094202488,10.315613,3498.2,3498.1,0.4517]
[1754094203549,7.457,3498.2,3498.1,0.4588]
[1754094204374,7.457,3498.2,3498.1,0.9287]
[1754094204785,3.0,3498.2,3498.1,0.9287]
[1754094204968,7.455,3498.2,3498.1,0.9287]
[1754094205989,7.455,3498.2,3498.1,0.4588]
[1754094206302,2.85883126,3498.0,3497.8,1e-08]
[1754094206592,4.455,3497.9,3497.8,1e-08]
[1754094206798,4.42641183,3497.9,3497.8,1e-08]
[1754094207992,4.42641183,3497.9,3497.8,0.92870001]
[1754094208866,4.42641183,3497.9,3497.8,0.45880001]
[1754094210905,4.42641183,3497.9,3497.8,0.92870001]
[1754094213426,4.42641183,3497.9,3497.8,1e-08]
[1754094213427,11.32809522,3497.9,3497.8,1e-08]
[1754094213641,19.81059522,3497.9,3497.8,1e-08]
[1754094213987,19.92513422,3497.9,3497.8,1e-08]
[1754094214228,20.06833422,3497.9,3497.8,1e-08]
[1754094215114,18.51788339,3497.9,3497.8,1e-08]
[1754094215331,17.47505817,3497.9,3497.8,1e-08]
[1754094216747,27.85228092,3497.9,3497.8,1e-08]
[1754094217601,28.40228092,3497.9,3497.8,1e-08]
[1754094218048,30.12028092,3497.9,3497.8,1e-08]
[1754094218251,32.98852799,3497.9,3497.8,1e-08]
[1754094220917,6.40951216,3497.1,3497.0,0.002]
[1754094221120,20.46943491,3497.1,3497.0,0.002]
[1754094221360,21.38193491,3497.1,3497.0,0.002]
[1754094221659,23.97787077,3497.1,3497.0,0.002]
[1754094222236,24.19506346,3497.1,3497.0,0.002]
[1754094223851,24.65586346,3497.1,3497.0,0.002]
[1754094224160,2.85983927,3496.7,3496.6,1e-08]
[1754094224347,20.49861214,3496.7,3496.6,1e-08]
[1754094224528,22.89643844,3496.7,3496.6,1e-08]
[1754094225647,2.86024826,3496.2,3496.1,0.002]
[1754094225846,20.35482113,3496.2,3496.1,1e-08]
[1754094226066,21.23847101,3496.2,3496.1,1e-08]
[1754094226366,24.05613405,3496.2,3496.1,1e-08]
[1754094226526,24.19933405,3496.2,3496.1,1e-08]
[1754094227163,2.86123032,3495.0,3493.8,2.86214156]
[1754094227335,2.86147594,3494.7,3494.6,0.4588]
[1754094227541,4.5942,3494.7,3494.2,0.9287]
[1754094227726,2.86155783,3494.6,3494.4,0.4588]
[1754094227929,7.45585948,3494.5,3493.9,0.1432]
[1754094228236,2.86188657,3494.2,3493.9,0.1432]
[1754094228437,4.47985012,3494.1,3494.0,0.9287]
[1754094228641,4.451,3494.1,3493.9,0.1432]
[1754094228828,3.03409934,3494.0,3493.6,0.002]
[1754094229023,2.86229498,3493.7,3493.6,0.002]
[1754094229250,7.31329498,3493.7,3493.6,0.002]
[1754094229456,21.9926048,3493.7,3493.6,0.002]
[1754094230066,22.20623618,3493.7,3493.6,0.002]
[1754094230284,24.83252426,3493.7,3493.6,0.002]
[1754094230879,15.36780151,3493.7,3493.6,0.002]
[1754094231590,15.36880151,3493.7,3493.6,0.4791]
[1754094231764,16.26670151,3493.7,3493.6,0.002]
[1754094231959,15.80350151,3493.7,3493.6,0.002]
[1754094232162,15.36880151,3493.7,3493.6,0.002]
[1754094232362,16.26670151,3493.7,3493.6,0.002]
[1754094233086,10.91680151,3493.7,3493.6,0.002]
[1754094233271,10.91680151,3493.7,3493.6,0.4791]
[1754094233272,12.74351343,3493.7,3493.6,0.4791]
[1754094234016,9.11658707,3493.7,3493.6,0.9239]
[1754094234490,6.11658707,3493.7,3493.6,0.9239]
[1754094234685,6.11658707,3493.7,3493.6,3.78627691]
[1754094234872,6.11658707,3493.7,3493.6,0.9239]
[1754094235080,4.452,3493.7,3493.6,0.9239]
[1754094235455,3.00525344,3494.0,3493.6,0.9239]
[1754094235658,3.0,3493.8,3493.7,0.9219]
[1754094237580,3.0,3494.3,3493.7,0.9219]
[1754094237785,3.0,3494.1,3493.8,0.4448]
[1754094237988,4.452,3494.0,3493.8,3.78405197]
[1754094238302,4.452,3493.9,3493.8,0.4448]
[1754094238864,0.1432,3494.1,3493.8,0.9219]
[1754094239204,4.452,3494.0,3493.8,0.9219]
[1754094239369,4.452,3494.0,3493.9,0.9219]
[1754094239765,1.36224048,3494.3,3493.9,3.78398471]
[1754094239970,4.451,3494.2,3493.9,3.00528471]
[1754094240176,4.451,3494.2,3494.0,0.9219]
[1754094240811,1.36224048,3494.3,3494.2,2.86188541]
[1754094241098,1.36224048,3494.3,3494.2,0.9219]
[1754094242006,3.2131434,3495.0,3494.2,0.9219]
[1754094242007,2.86065737,3495.7,3494.2,1.74401661]
[1754094242202,0.1432,3495.4,3494.7,2.86146565]
[1754094242505,0.1432,3495.4,3494.0,0.4771]
[1754094242506,3.00492161,3494.4,3494.0,0.4771]
[1754094242687,4.451,3494.3,3494.1,0.9219]
[1754094242907,0.1432,3494.4,3494.2,0.9219]
[1754094243123,0.1432,3494.4,3494.3,0.4771]
[1754094243283,0.1432,3494.4,3494.3,0.9219]
[1754094243790,4.451,3494.5,3494.3,0.9219]
[1754094243998,4.451,3494.5,3494.1,3.00513729]
[1754094244196,4.451,3494.5,3494.4,0.9219]
[1754094244394,4.451,3494.5,3494.1,0.1432]
[1754094244597,7.34150672,3494.5,3493.7,2.86225368]
[1754094244779,3.46820349,3494.4,3493.9,0.1432]
[1754094245114,4.451,3494.3,3494.1,0.002]
[1754094245317,4.451,3494.3,3494.1,0.4791]
[1754094245817,2.86188541,3494.2,3494.1,0.002]
[1754094246119,3.93183553,3494.2,3494.1,0.002]
[1754094246413,3.90298541,3494.2,3494.1,0.002]
[1754094247229,4.48183553,3494.2,3494.1,0.002]
[1754094248297,4.45298541,3494.2,3494.1,0.002]
[1754094248500,7.08209713,3494.2,3494.1,0.002]
[1754094249527,10.08209713,3494.2,3494.1,0.002]
[1754094249883,11.35326075,3494.2,3494.1,0.002]
[1754094250436,6.41229498,3493.7,3493.6,0.002]
[1754094250594,11.78974475,3493.7,3493.6,0.002]
[1754094250798,12.83084475,3493.7,3493.6,0.002]
[1754094254184,7.6972366,3493.7,3493.6,0.002]
[1754094254384,12.0040366,3493.7,3493.6,0.002]
[1754094254789,11.4540366,3493.7,3493.6,0.002]
[1754094255026,10.52658683,3493.7,3493.6,0.002]
[1754094255326,7.52658683,3493.7,3493.6,0.4791]
[1754094256026,7.52658683,3493.7,3493.6,0.002]
[1754094259794,2.86229498,3493.7,3493.6,0.002]
[1754094260024,1.27116362,3494.2,3493.6,0.9239]
[1754094260331,2.86226707,3493.8,3493.7,0.9219]
[1754094260538,2.86216399,3493.9,3493.7,0.9219]
[1754094260722,9.88198831,3494.1,3493.8,0.9219]
[1754094260723,7.02,3494.1,3493.8,0.9219]
[1754094260922,1.27116362,3494.2,3493.9,1.30051515]
[1754094261132,1.27116362,3494.2,3494.0,0.9219]
[1754094261339,1.27116362,3494.2,3494.1,0.9219]
[1754094261566,1.27116362,3494.2,3494.1,0.9103]
[1754094261905,1.27116362,3494.2,3493.6,0.002]
[1754094261906,5.72116362,3494.2,3493.7,0.4771]
[1754094262106,2.8908808,3494.1,3493.8,0.4771]
[1754094262428,2.86229498,3493.7,3493.6,0.002]
[1754094262745,7.31229498,3493.7,3493.6,0.4791]
[1754094262906,4.45,3493.7,3493.6,0.4352]
[1754094263106,7.31229498,3493.7,3493.6,0.4352]
[1754094263308,7.31229498,3493.7,3493.6,0.9123]
[1754094264702,7.31229498,3493.7,3493.6,0.002]
[1754094264907,8.47293932,3493.7,3493.6,0.002]
[1754094265308,7.45549498,3493.7,3493.6,0.002]
[1754094267637,0.1432,3493.7,3493.6,0.4791]
[1754094267848,7.31129498,3493.7,3493.6,0.4791]
[1754094268262,7.31129498,3493.7,3493.6,0.9123]
[1754094269146,7.31129498,3493.7,3493.6,0.4791]
[1754094269346,7.31129498,3493.7,3493.6,0.9123]
[1754094270279,4.449,3493.7,3493.6,0.9123]
[1754094271603,7.31129498,3493.7,3493.6,0.9123]
[1754094272052,4.449,3493.7,3493.6,0.9123]
[1754094273263,7.31129498,3493.7,3493.6,0.9123]
[1754094273452,4.449,3493.7,3493.6,0.9123]
[1754094273962,7.31129498,3493.7,3493.6,0.9123]
[1754094275064,4.449,3493.7,3493.6,0.9123]
[1754094275669,7.31129498,3493.7,3493.6,0.9123]
[1754094275863,4.449,3493.7,3493.6,0.002]
[1754094276064,7.31129498,3493.7,3493.6,0.002]
[1754094276270,4.449,3493.7,3493.6,0.4791]
[1754094277873,7.021,3494.1,3493.6,0.9123]
[1754094278077,7.021,3494.1,3493.7,0.1432]
[1754094278078,4.447,3494.0,3493.7,0.1432]
[1754094278275,4.447,3494.0,3493.7,1.0535]
[1754094278586,4.447,3493.9,3493.8,0.9103]
[1754094278750,4.447,3493.9,3493.8,1.58831733]
[1754094279112,4.447,3493.9,3493.8,4.45053039]
[1754094279649,4.447,3493.9,3493.8,1.58831733]
[1754094280466,4.447,3494.0,3493.8,1.58831733]
[1754094280666,4.447,3494.0,3493.8,0.67801733]
[1754094280892,4.447,3494.0,3493.9,0.9103]
[1754094282059,7.021,3494.1,3493.9,1.36987774]
[1754094282258,7.021,3494.1,3494.0,2.86204922]
[1754094282559,7.021,3494.1,3494.0,3.77234922]
[1754094283185,7.021,3494.1,3494.0,0.9103]
[1754094283707,7.021,3494.1,3494.0,3.77234922]
[1754094284008,7.021,3494.1,3494.0,4.49608199]
[1754094286113,0.001,3494.1,3494.0,4.49608199]
[1754094286318,0.001,3494.1,3494.0,4.63928199]
[1754094287209,0.001,3494.1,3494.0,0.86693277]
[1754094287526,0.001,3494.1,3494.0,0.1432]
[1754094291889,2.86296731,3494.1,3493.6,0.002]
[1754094292114,2.86204922,3494.0,3493.9,0.1432]
[1754094292320,4.444,3494.0,3493.6,3.33756424]
[1754094292520,4.444,3494.0,3493.8,0.1432]
[1754094293921,0.001,3494.1,3493.9,3.33532546]
[1754094294119,0.001,3494.1,3494.0,3.77164922]
[1754094294289,0.001,3494.1,3494.0,3.91484922]
[1754094296901,0.001,3494.1,3494.0,0.1432]
[1754094299590,0.001,3494.1,3494.0,3.47844922]
[1754094300200,0.001,3494.1,3494.0,0.6164]
[1754094300639,0.001,3494.1,3494.0,0.1432]
[1754094301229,0.001,3494.1,3494.0,3.00524922]
[1754094301402,0.001,3494.1,3494.0,4.30634153]
[1754094304244,0.001,3494.1,3494.0,3.91484922]
[1754094305511,0.001,3494.1,3494.0,6.94346971]
[1754094305705,1e-08,3494.1,3494.0,7.46484922]
[1754094307682,1e-08,3494.5,3494.4,6.41172161]
[1754094307978,1e-08,3494.5,3494.4,10.85372161]
[1754094308185,1e-08,3494.5,3494.4,11.90652161]
[1754094308983,1e-08,3494.5,3494.4,13.66955167]
[1754094309184,1e-08,3494.5,3494.4,8.67755167]
[1754094309385,1e-08,3494.5,3494.4,13.11855167]
[1754094312063,1e-08,3494.5,3494.4,12.64535167]
[1754094312264,1e-08,3494.5,3494.4,13.11855167]
[1754094316916,1e-08,3494.5,3494.4,13.66855167]
[1754094321039,1e-08,3494.5,3494.4,13.11855167]
[1754094321186,1e-08,3494.5,3494.4,12.20695167]
[1754094321615,0.93390001,3494.5,3494.4,12.20695167]
[1754094322126,1e-08,3494.5,3494.4,12.20695167]
[1754094322622,1e-08,3494.5,3494.4,12.20595167]
[1754094324830,1e-08,3494.5,3494.4,12.70175167]
[1754094325830,1e-08,3494.5,3494.4,13.14605167]
[1754094326033,1e-08,3494.5,3494.4,12.70175167]
[1754094326198,1e-08,3494.5,3494.4,12.20595167]
[1754094328835,1e-08,3494.5,3494.4,9.20595167]
[1754094329033,1e-08,3494.5,3494.4,7.44192161]
[1754094329344,1e-08,3494.5,3494.4,10.44192161]
[1754094329899,1e-08,3494.5,3494.4,6.00492161]
[1754094330100,1e-08,3494.5,3494.4,10.44192161]
[1754094330724,0.93390001,3494.5,3494.4,7.44192161]
[1754094331223,0.93390001,3494.5,3494.4,7.44392161]
[1754094334650,1e-08,3494.5,3494.4,7.44392161]
[1754094335016,1e-08,3494.5,3494.4,9.71459468]
[1754094335349,1e-08,3494.5,3494.4,12.71459468]
[1754094335711,1e-08,3494.5,3494.4,11.77449468]
[1754094336603,1e-08,3494.5,3494.4,12.27029468]
[1754094337051,1e-08,3494.5,3494.4,12.71459468]
[1754094344528,1e-08,3494.5,3494.4,13.26459468]
[1754094344919,1e-08,3494.5,3494.4,12.27029468]
[1754094345116,1e-08,3494.5,3494.4,7.33749468]
[1754094345319,0.93390001,3494.5,3494.4,0.1452]
[1754094345515,2.86178996,3494.4,3494.0,0.002]
[1754094345765,0.829,3494.4,3494.1,4.435]
[1754094345930,4.05987059,3494.3,3494.2,0.1432]
[1754094346143,1.37011721,3494.3,3494.0,0.002]
[1754094346322,3.00516731,3494.1,3494.0,0.002]
[1754094346669,3.03401743,3494.1,3494.0,0.002]
[1754094346879,3.86301743,3494.1,3494.0,0.002]
[1754094347052,7.55794003,3494.1,3494.0,1e-08]
[1754094347220,7.52908991,3494.1,3494.0,1e-08]
[1754094347557,7.52908991,3494.1,3493.6,0.002]
[1754094347558,3.41229498,3493.7,3493.6,1e-08]
[1754094347763,20.49179855,3493.7,3493.6,1e-08]
[1754094347922,20.46294843,3493.7,3493.6,1e-08]
[1754094348122,21.29194843,3493.7,3493.6,1e-08]
[1754094348325,23.99356796,3493.7,3493.6,1e-08]
[1754094348520,24.13676796,3493.7,3493.6,1e-08]
[1754094348820,3.41262273,3493.3,3493.2,1e-08]
[1754094349019,11.01967285,3493.3,3493.2,1e-08]
[1754094349232,13.22831548,3493.3,3493.2,1e-08]
[1754094355424,8.65011548,3493.3,3493.2,1e-08]
[1754094355631,8.98769275,3493.3,3493.2,1e-08]
[1754094356042,12.30741548,3493.3,3493.2,1e-08]
[1754094356235,12.69381548,3493.3,3493.2,1e-08]
[1754094357573,12.30741548,3493.3,3493.2,1e-08]
[1754094359180,4.436,3493.5,3493.2,0.49600001]
[1754094359465,4.436,3493.5,3493.2,1e-08]
[1754094359466,2.86262273,3493.3,3493.2,1e-08]
[1754094359832,3.70612273,3493.3,3493.2,1e-08]
[1754094360230,8.37378785,3493.3,3493.2,1e-08]
[1754094360560,6.98028785,3493.3,3493.2,1e-08]
[1754094360873,4.436,3493.3,3493.2,0.49600001]
[1754094361827,0.1432,3493.4,3493.2,0.94250001]
[1754094361976,4.436,3493.7,3493.2,0.94250001]
[1754094362135,4.435,3493.9,3493.8,3.00541306]
[1754094362553,0.001,3494.1,3494.0,2.86204922]
[1754094362771,0.001,3494.1,3493.9,0.9425]
[1754094363087,0.001,3494.1,3494.0,0.1432]
[1754094363261,0.001,3494.1,3494.0,3.00524922]
[1754094363453,0.001,3494.1,3494.0,3.94774922]
[1754094364055,0.001,3494.1,3494.0,1.0857]
[1754094364678,0.001,3494.1,3494.0,3.94774922]
[1754094364845,0.001,3494.1,3494.0,1.0857]
[1754094370284,0.001,3494.1,3494.0,1.48048259]
[1754094370455,0.001,3494.1,3494.0,4.34253181]
[1754094371163,0.001,3494.1,3494.0,1.48048259]
[1754094371368,0.001,3494.1,3494.0,1.0857]
[1754094371593,0.001,3494.1,3494.0,3.94774922]
[1754094373163,0.001,3494.1,3494.0,1.0857]
[1754094373409,0.001,3494.1,3494.0,3.94774922]
[1754094373697,0.001,3494.1,3494.0,1.0857]
[1754094373904,0.001,3494.1,3494.0,3.94774922]
[1754094374594,0.001,3494.1,3494.0,1.0857]
[1754094374891,0.001,3494.1,3494.0,3.94774922]
[1754094377598,0.001,3494.1,3494.0,5.10056577]
[1754094377897,0.001,3494.1,3494.0,5.07194528]
[1754094378201,0.001,3494.1,3494.0,8.07194528]
[1754094379398,1e-08,3494.1,3494.0,22.12259873]
[1754094380395,1e-08,3494.5,3494.4,3.41172161]
[1754094380610,1e-08,3494.5,3494.4,11.91427482]
[1754094380999,1e-08,3494.5,3494.4,12.85677482]
[1754094386518,1e-08,3494.5,3494.4,11.21907482]
[1754094386845,1e-08,3494.5,3494.4,5.86172161]
[1754094389205,1e-08,3494.5,3494.4,10.77512161]
[1754094389402,1e-08,3494.5,3494.4,11.24392161]
[1754094390311,1e-08,3494.5,3494.4,10.77512161]
[1754094390910,1e-08,3494.5,3494.4,12.18569482]
[1754094392037,1e-08,3494.5,3494.4,12.65449482]
[1754094396537,1e-08,3494.5,3494.4,12.79769482]
[1754094399030,1e-08,3494.5,3494.4,7.89889482]
[1754094399230,1e-08,3494.5,3494.4,10.43292161]
[1754094400662,1e-08,3494.5,3494.4,10.91632161]
[1754094401030,1e-08,3494.5,3494.4,11.38512161]
[1754094401938,1e-08,3494.5,3494.4,11.93512161]
[1754094402463,1e-08,3494.5,3494.4,10.91632161]
[1754094402679,1e-08,3494.5,3494.4,12.34101482]
[1754094403188,1e-08,3494.5,3494.4,12.80981482]
[1754094406987,1e-08,3494.9,3494.8,5.86139407]
[1754094407192,1e-08,3494.9,3494.8,10.28839407]
[1754094407425,1e-08,3494.9,3494.8,11.38379407]
[1754094407628,1e-08,3494.9,3494.8,27.69435344]
[1754094409336,1e-08,3494.9,3494.8,12.14228556]
[1754094409630,1e-08,3494.9,3494.8,7.71528556]
[1754094409813,1e-08,3494.9,3494.8,12.14228556]
[1754094410215,1e-08,3494.9,3494.8,12.62568556]
[1754094410422,1e-08,3494.9,3494.8,27.69435344]
[1754094411156,0.001,3496.2,3496.1,2.86033008]
[1754094411363,0.001,3496.2,3496.1,7.28733008]
[1754094411653,0.001,3496.2,3496.1,7.43053008]
[1754094412850,2.85953049,3497.1,3496.1,7.43053008]
[1754094412851,1.54965441,3497.3,3496.2,2.86024826]
[1754094413002,1.93605441,3497.3,3497.2,2.8594304]
[1754094413208,1.93605441,3497.3,3497.2,4.426]
[1754094413524,2.38245441,3497.3,3497.2,4.426]
[1754094414705,5.2418131,3497.3,3497.0,4.426]
[1754094414946,2.85974346,3496.9,3496.4,4.426]
[1754094415257,2.85985538,3496.7,3496.4,0.1432]
[1754094415556,3.38363637,3497.2,3496.5,2.85995145]
[1754094415860,0.4464,3496.6,3496.5,2.85995145]
[1754094416225,0.4464,3496.6,3496.5,3.00315145]
[1754094417162,0.4464,3496.6,3496.5,3.00320286]
[1754094417316,0.4464,3496.6,3496.5,0.1432]
[1754094417515,0.8328,3496.6,3496.1,2.86029679]
[1754094417718,0.02885012,3496.5,3496.3,0.1432]
[1754094417978,0.02885012,3496.5,3494.9,2.86123699]
[1754094417979,1.20496258,3496.4,3494.9,2.86123699]
[1754094418313,3.00352106,3496.2,3495.7,0.1432]
[1754094418685,0.8328,3496.1,3495.7,0.1432]
[1754094418890,7.8528,3496.7,3495.7,0.1432]
[1754094419195,0.4464,3496.5,3496.1,0.1432]
[1754094419359,0.8328,3496.4,3496.1,0.1432]
[1754094419559,0.4464,3496.3,3496.1,0.1432]
[1754094420271,0.4464,3497.1,3496.7,2.85979136]
[1754094420468,0.8328,3497.0,3496.5,7.28496384]
[1754094420781,0.8328,3496.9,3496.6,2.85990316]
[1754094420964,0.3864,3496.9,3496.6,2.85990316]
[1754094421167,0.8328,3496.8,3495.7,0.4539]
[1754094421383,3.69269655,3496.7,3496.0,2.86039335]
[1754094421698,3.69273144,3496.6,3496.0,2.86039335]
[1754094421883,0.8328,3496.5,3496.0,2.86039335]
[1754094422211,0.8328,3496.4,3496.0,2.86039335]
[1754094422371,2.85987006,3496.7,3496.1,2.86030772]
[1754094422700,1.01446158,3496.7,3496.4,2.86000439]
[1754094422912,0.4464,3496.9,3496.4,2.86000439]
[1754094423398,0.4464,3496.8,3496.4,2.86000439]
[1754094423600,11.445,3497.2,3496.1,4.8789]
[1754094423800,11.445,3497.2,3496.7,2.85983818]
[1754094423985,0.4464,3497.1,3496.7,2.85983818]
[1754094424182,1.66878364,3497.1,3496.7,2.85983818]
[1754094424389,0.4464,3497.0,3496.7,2.85983818]
[1754094424762,0.001,3496.9,3496.7,2.85983818]